fUSD/lending_fUSD_20260616
["ID","MTS","AMOUNT","RATE_DAILY","PERIOD"]
[425144733,1781548296000,-273.15455,0.00035579,120]
[425144743,1781548296000,-1560.6054,0.000356,30]
[425144735,1781548296000,-2494.0,0.00035589,120]
[425144803,1781548297000,-2500.0,0.00036,37]
[425144786,1781548297000,-260.31,0.000359,98]
[425144784,1781548297000,-1000.0,0.0003589,120]
[425144791,1781548297000,-150.0,0.00035951,2]
[425144789,1781548297000,-158.24410207,0.00035939,2]
[425144794,1781548297000,-500.0,0.00035951,2]
[425144785,1781548297000,-150.0,0.00035899,2]
[425144798,1781548297000,-150.0,0.00035951,2]
[425144802,1781548297000,-2357.38,0.00036,20]
[425144795,1781548297000,-1000.0,0.00035951,2]
[425144801,1781548297000,-211.00013061,0.00035996,120]
[425144797,1781548297000,-1000.0,0.00035951,2]
[425144800,1781548297000,-1000.0,0.00035972,120]
[425144796,1781548297000,-1000.0,0.00035951,2]
[425144799,1781548297000,-150.0,0.00035951,2]
[425144788,1781548297000,-1000.0,0.00035917,120]
[425144793,1781548297000,-500.0,0.00035951,2]
[425144790,1781548297000,-1000.0,0.00035945,120]
[425144777,1781548297000,-1000.0,0.0003578,120]
[425144782,1781548297000,-1000.0,0.00035863,120]
[425144804,1781548297000,-800.0,0.00036,7]
[425144766,1781548297000,-228.27538337,0.00035668,8]
[425144771,1781548297000,-501.0,0.00035688,11]
[425144768,1781548297000,-498.83612077,0.00035668,120]
[425144770,1781548297000,-614.7,0.00035673,14]
[425144769,1781548297000,-1000.0,0.00035671,120]
[425144767,1781548297000,-515.27531395,0.00035668,120]
[425144772,1781548297000,-1000.0,0.00035698,120]
[425144779,1781548297000,-154.358075,0.00035808,8]
[425144775,1781548297000,-1000.0,0.00035753,120]
[425144773,1781548297000,-1000.0,0.00035726,120]
[425144778,1781548297000,-151.98334777,0.000358,120]
[425144781,1781548297000,-1000.0,0.00035835,120]
[425144774,1781548297000,-372.66,0.00035742,7]
[425144780,1781548297000,-1000.0,0.00035808,120]
[425144776,1781548297000,-2214.5576,0.00035759,2]
[425144783,1781548297000,-269.394329,0.00035879,120]
[425144792,1781548297000,-150.0,0.00035951,2]
[425144807,1781548297000,-155.13509262,0.00036,7]
[425144787,1781548297000,-278.0,0.000359,120]
[425144810,1781548297000,-170.59888483,0.00036,7]
[425144832,1781548297000,-927.66050344,0.000361,30]
[425144828,1781548297000,-1021.93312339,0.000361,30]
[425144833,1781548297000,-927.66050344,0.000361,30]
[425144835,1781548297000,-2063.19650212,0.000361,30]
[425144834,1781548297000,-2063.19650213,0.000361,30]
[425144830,1781548297000,-1021.93312338,0.000361,30]
[425144829,1781548297000,-1021.93312338,0.000361,30]
[425144831,1781548297000,-927.66050346,0.000361,30]
[425144837,1781548297000,-2063.19650212,0.000361,30]
[425144836,1781548297000,-183.15452536,0.000361,30]
[425144842,1781548297000,-1000.0,0.00036164,120]
[425144840,1781548297000,-1000.0,0.00036136,120]
[425144841,1781548297000,-564.3,0.00036153,30]
[425144838,1781548297000,-183.15452535,0.000361,30]
[425144843,1781548297000,-383.0,0.00036164,100]
[425144845,1781548297000,-1434.03,0.00036188,5]
[425144806,1781548297000,-800.0,0.00036,7]
[425144826,1781548297000,-25000.0,0.00036071,10]
[425144827,1781548297000,-1000.0,0.00036082,120]
[425144839,1781548297000,-1000.0,0.00036109,120]
[425144823,1781548297000,-215.6,0.00036026,120]
[425144824,1781548297000,-1000.0,0.00036027,120]
[425144811,1781548297000,-2966.0,0.00036,120]
[425144808,1781548297000,-2000.0,0.00036,2]
[425144805,1781548297000,-800.0,0.00036,7]
[425144814,1781548297000,-235.0,0.00036,30]
[425144809,1781548297000,-2000.0,0.00036,2]
[425144812,1781548297000,-235.0,0.00036,30]
[425144816,1781548297000,-700.0,0.00036,30]
[425144813,1781548297000,-167.0,0.00036,120]
[425144821,1781548297000,-150.0,0.0003602,2]
[425144822,1781548297000,-150.0,0.0003602,2]
[425144819,1781548297000,-2214.5576,0.00036006,2]
[425144844,1781548297000,-265.692405,0.00036179,120]
[425144817,1781548297000,-1000.0,0.00036,120]
[425144815,1781548297000,-500.0,0.00036,120]
[425144825,1781548297000,-1000.0,0.00036054,120]
[425144818,1781548297000,-2501.09,0.00036003,10]
[425144820,1781548297000,-228.27538337,0.00036013,8]
[425144889,1781548298000,-181.80707183,0.000365,120]
[425144883,1781548298000,-1734.68,0.00036487,2]
[425144882,1781548298000,-158.24410207,0.00036487,2]
[425144890,1781548298000,-150.0,0.00036507,120]
[425144881,1781548298000,-564.0,0.00036487,3]
[425144877,1781548298000,-150.0,0.00036459,120]
[425144874,1781548298000,-150.0,0.00036427,120]
[425144879,1781548298000,-501.0,0.00036466,12]
[425144880,1781548298000,-262.048779,0.0003648,120]
[425144875,1781548298000,-253.17,0.00036438,120]
[425144876,1781548298000,-1000.0,0.00036438,120]
[425144885,1781548298000,-800.0,0.000365,7]
[425144894,1781548298000,-500.0,0.00036518,120]
[425144884,1781548298000,-1000.0,0.00036493,120]
[425144887,1781548298000,-800.0,0.000365,7]
[425144886,1781548298000,-800.0,0.000365,7]
[425144892,1781548298000,-500.0,0.00036518,120]
[425144902,1781548298000,-1000.0,0.00036547,120]
[425144893,1781548298000,-500.0,0.00036518,120]
[425144891,1781548298000,-163.2936167,0.00036518,120]
[425144897,1781548298000,-500.0,0.00036518,120]
[425144899,1781548298000,-218.25,0.00036518,120]
[425144901,1781548298000,-1000.0,0.0003652,120]
[425144878,1781548298000,-1000.0,0.00036465,120]
[425144888,1781548298000,-10100.05133701,0.000365,18]
[425144870,1781548298000,-278.0,0.000364,120]
[425144851,1781548298000,-1000.0,0.00036246,120]
[425144873,1781548298000,-359.81737692,0.00036423,2]
[425144846,1781548298000,-2507.23,0.00036191,10]
[425144848,1781548298000,-1336.35,0.00036208,7]
[425144856,1781548298000,-880.33146144,0.00036262,2]
[425144849,1781548298000,-158.24410207,0.00036213,2]
[425144857,1781548298000,-1000.0,0.00036273,120]
[425144847,1781548298000,-1000.0,0.00036191,120]
[425144852,1781548298000,-150.0,0.00036253,120]
[425144900,1781548298000,-401.0,0.0003652,16]
[425144850,1781548298000,-1000.0,0.00036219,120]
[425144853,1781548298000,-2214.5583,0.00036253,2]
[425144855,1781548298000,-370.38512906,0.00036262,2]
[425144854,1781548298000,-163.0697,0.00036253,2]
[425144859,1781548298000,-150.10585467,0.00036279,2]
[425144862,1781548298000,-260.31,0.0003634,114]
[425144860,1781548298000,-1000.0,0.00036301,120]
[425144858,1781548298000,-2000.0,0.00036274,30]
[425144861,1781548298000,-1000.0,0.00036328,120]
[425144863,1781548298000,-228.27538337,0.00036353,8]
[425144865,1781548298000,-498.83612077,0.00036353,120]
[425144867,1781548298000,-150.0,0.00036369,120]
[425144864,1781548298000,-515.27531395,0.00036353,120]
[425144868,1781548298000,-1000.0,0.00036383,120]
[425144866,1781548298000,-1000.0,0.00036356,120]
[425144869,1781548298000,-386005.0,0.000364,30]
[425144872,1781548298000,-1000.0,0.0003641,120]
[425144871,1781548298000,-150.0,0.00036403,120]
[425144896,1781548298000,-500.0,0.00036518,120]
[425144898,1781548298000,-256.7907144,0.00036518,120]
[425144904,1781548298000,-351.58,0.00036569,7]
[425144927,1781548298000,-605.45,0.00036706,3]
[425144928,1781548298000,-500.0,0.00036712,60]
[425144931,1781548298000,-1000.0,0.00036712,120]
[425144936,1781548298000,-3558.0,0.00036761,2]
[425144937,1781548298000,-158.24410207,0.00036761,2]
[425144939,1781548298000,-260.31,0.0003678,120]
[425144938,1781548298000,-1000.0,0.00036767,120]
[425144942,1781548298000,-1644.24129395,0.000368,2]
[425144947,1781548298000,-2507.24,0.00036862,10]
[425144945,1781548298000,-1000.0,0.00036849,120]
[425144948,1781548298000,-1000.0,0.00036876,120]
[425144941,1781548298000,-1000.0,0.00036794,120]
[425144933,1781548298000,-1000.0,0.00036739,120]
[425144949,1781548298000,-202.0,0.0003689,30]
[425144946,1781548298000,-603.2478,0.00036853,30]
[425144944,1781548298000,-1000.0,0.00036821,120]
[425144943,1781548298000,-150.0,0.0003681,120]
[425144950,1781548298000,-589.0,0.00036897,30]
[425144956,1781548298000,-1000.0,0.00036931,120]
[425144895,1781548298000,-500.0,0.00036518,120]
[425144951,1781548298000,-16506.82972572,0.000369,18]
[425144953,1781548298000,-278.0,0.000369,120]
[425144958,1781548298000,-3722.04,0.00036942,10]
[425144952,1781548298000,-278.0,0.000369,120]
[425144955,1781548298000,-5000.0,0.00036908,2]
[425144957,1781548298000,-2000.0,0.00036932,30]
[425144940,1781548298000,-258.463451,0.0003678,120]
[425144929,1781548298000,-500.0,0.00036712,60]
[425144954,1781548298000,-1000.0,0.00036904,120]
[425144934,1781548298000,-150.36478221,0.00036756,2]
[425144932,1781548298000,-10999.64,0.00036735,14]
[425144914,1781548298000,-1000.0,0.00036657,120]
[425144903,1781548298000,-503.84371303,0.00036552,120]
[425144907,1781548298000,-149882.0,0.000366,15]
[425144906,1781548298000,-25000.0,0.0003659,10]
[425144908,1781548298000,-1000.0,0.00036602,120]
[425144910,1781548298000,-605.45,0.00036602,3]
[425144911,1781548298000,-605.45,0.00036602,3]
[425144909,1781548298000,-605.45,0.00036602,3]
[425144912,1781548298000,-500.0,0.00036605,35]
[425144913,1781548298000,-1000.0,0.0003663,120]
[425144918,1781548298000,-228.27538337,0.00036698,8]
[425144905,1781548298000,-1000.0,0.00036575,120]
[425144916,1781548298000,-1000.0,0.00036684,120]
[425144915,1781548298000,-2501.1,0.00036683,10]
[425144930,1781548298000,-500.0,0.00036712,60]
[425144920,1781548298000,-1000.0,0.000367,2]
[425144926,1781548298000,-605.45,0.00036706,3]
[425144924,1781548298000,-605.45,0.00036702,3]
[425144921,1781548298000,-1000.0,0.000367,2]
[425144925,1781548298000,-605.45,0.00036706,3]
[425144919,1781548298000,-351.666,0.000367,30]
[425144922,1781548298000,-605.45,0.00036702,3]
[425144917,1781548298000,-150.0,0.00036687,120]
[425144923,1781548298000,-605.45,0.00036702,3]
[425144935,1781548298000,-6078.0,0.00036761,2]
[425144983,1781548299000,-1000.0,0.00036996,2]
[425144989,1781548299000,-1000.0,0.00036996,2]
[425144984,1781548299000,-1000.0,0.00036996,2]
[425144986,1781548299000,-1000.0,0.00036996,2]
[425144992,1781548299000,-1000.0,0.00036996,2]
[425144995,1781548299000,-1000.0,0.00036996,2]
[425144985,1781548299000,-1000.0,0.00036996,2]
[425144988,1781548299000,-1000.0,0.00036996,2]
[425144987,1781548299000,-1000.0,0.00036996,2]
[425145004,1781548299000,-1000.0,0.00036996,2]
[425144994,1781548299000,-1000.0,0.00036996,2]
[425144990,1781548299000,-1000.0,0.00036996,2]
[425144993,1781548299000,-1000.0,0.00036996,2]
[425145006,1781548299000,-1000.0,0.00036996,2]
[425144997,1781548299000,-1000.0,0.00036996,2]
[425145003,1781548299000,-1000.0,0.00036996,2]
[425144999,1781548299000,-1000.0,0.00036996,2]
[425144996,1781548299000,-1000.0,0.00036996,2]
[425144977,1781548299000,-1000.0,0.00036996,2]
[425144991,1781548299000,-1000.0,0.00036996,2]
[425144982,1781548299000,-1000.0,0.00036996,2]
[425144963,1781548299000,-150.0,0.00036987,2]
[425144976,1781548299000,-1000.0,0.00036996,2]
[425145000,1781548299000,-1000.0,0.00036996,2]
[425144960,1781548299000,-23328.81,0.00036956,10]
[425144959,1781548299000,-150.0,0.00036943,120]
[425144962,1781548299000,-500.0,0.00036986,120]
[425144961,1781548299000,-668.55710065,0.00036958,120]
[425144972,1781548299000,-1000.0,0.00036996,2]
[425144968,1781548299000,-1000.0,0.00036996,2]
[425144971,1781548299000,-1000.0,0.00036996,2]
[425144969,1781548299000,-1000.0,0.00036996,2]
[425144975,1781548299000,-1000.0,0.00036996,2]
[425144966,1781548299000,-1000.0,0.00036996,2]
[425144965,1781548299000,-1000.0,0.00036996,2]
[425144967,1781548299000,-1000.0,0.00036996,2]
[425144970,1781548299000,-1000.0,0.00036996,2]
[425144974,1781548299000,-1000.0,0.00036996,2]
[425144978,1781548299000,-578.0,0.00036996,2]
[425144980,1781548299000,-1000.0,0.00036996,2]
[425144979,1781548299000,-1000.0,0.00036996,2]
[425144973,1781548299000,-1000.0,0.00036996,2]
[425144981,1781548299000,-1000.0,0.00036996,2]
[425144964,1781548299000,-1000.0,0.00036996,2]
[425145005,1781548299000,-1000.0,0.00036996,2]
[425145024,1781548299000,-1000.0,0.00036996,2]
[425144998,1781548299000,-1000.0,0.00036996,2]
[425145030,1781548299000,-1000.0,0.00036996,2]
[425145032,1781548299000,-1000.0,0.00036996,2]
[425145031,1781548299000,-1000.0,0.00036996,2]
[425145033,1781548299000,-1000.0,0.00036996,2]
[425145034,1781548299000,-800.0,0.00037,7]
[425145035,1781548299000,-800.0,0.00037,7]
[425145037,1781548299000,-800.0,0.00037,7]
[425145036,1781548299000,-300.0,0.00037,2]
[425145039,1781548299000,-2500.0,0.00037,5]
[425145038,1781548299000,-5000.0,0.00037,2]
[425145041,1781548299000,-169.0697113,0.00037,2]
[425145040,1781548299000,-365.0,0.00037,2]
[425145042,1781548299000,-4500.0,0.00037,2]
[425145043,1781548299000,-10000.0,0.00037,14]
[425145044,1781548299000,-20000.0,0.00037,7]
[425145045,1781548299000,-2000.0,0.00037,2]
[425145047,1781548299000,-400.0,0.00037,2]
[425145049,1781548299000,-274.4277726,0.00037,2]
[425145001,1781548299000,-1000.0,0.00036996,2]
[425145025,1781548299000,-1000.0,0.00036996,2]
[425145046,1781548299000,-2000.0,0.00037,2]
[425145048,1781548299000,-150.0,0.00037,3]
[425145029,1781548299000,-1000.0,0.00036996,2]
[425145008,1781548299000,-1000.0,0.00036996,2]
[425145007,1781548299000,-1000.0,0.00036996,2]
[425145009,1781548299000,-1000.0,0.00036996,2]
[425145018,1781548299000,-1000.0,0.00036996,2]
[425145011,1781548299000,-1000.0,0.00036996,2]
[425145028,1781548299000,-1000.0,0.00036996,2]
[425145015,1781548299000,-1000.0,0.00036996,2]
[425145010,1781548299000,-1000.0,0.00036996,2]
[425145014,1781548299000,-1000.0,0.00036996,2]
[425145016,1781548299000,-1000.0,0.00036996,2]
[425145013,1781548299000,-1000.0,0.00036996,2]
[425145027,1781548299000,-1000.0,0.00036996,2]
[425145017,1781548299000,-1000.0,0.00036996,2]
[425145026,1781548299000,-1000.0,0.00036996,2]
[425145023,1781548299000,-1000.0,0.00036996,2]
[425145002,1781548299000,-1000.0,0.00036996,2]
[425145021,1781548299000,-1000.0,0.00036996,2]
[425145019,1781548299000,-1000.0,0.00036996,2]
[425145020,1781548299000,-1000.0,0.00036996,2]
[425145012,1781548299000,-1000.0,0.00036996,2]
[425145022,1781548299000,-1000.0,0.00036996,2]
[425145071,1781548300000,-498.83612077,0.00037038,120]
[425145070,1781548300000,-515.27531395,0.00037038,120]
[425145073,1781548300000,-512.9756303,0.00037041,120]
[425145076,1781548300000,-254.936421,0.0003708,120]
[425145077,1781548300000,-1508.52,0.000371,60]
[425145078,1781548300000,-999.29,0.000371,60]
[425145074,1781548300000,-505.16285128,0.00037041,120]
[425145086,1781548300000,-6349.69,0.00037164,2]
[425145081,1781548300000,-150.0,0.00037121,120]
[425145080,1781548300000,-840.65,0.000371,60]
[425145084,1781548300000,-300.0,0.00037137,2]
[425145083,1781548300000,-150.0,0.00037128,120]
[425145085,1781548300000,-1267.23,0.00037155,5]
[425145082,1781548300000,-278.0,0.00037125,120]
[425145087,1781548300000,-3113.68,0.00037164,7]
[425145075,1781548300000,-6390.0,0.00037046,10]
[425145079,1781548300000,-1149.76,0.000371,60]
[425145072,1781548300000,-1242.28650753,0.00037038,30]
[425145059,1781548300000,-252.20518202,0.00037,60]
[425145068,1781548300000,-158.24410207,0.00037035,2]
[425145091,1781548300000,-1246.74052059,0.000372,120]
[425145051,1781548300000,-268.0,0.00037,20]
[425145052,1781548300000,-19302.48040956,0.00037,9]
[425145050,1781548300000,-1166.63927753,0.00037,7]
[425145060,1781548300000,-602.64,0.00037,30]
[425145053,1781548300000,-3680.5455422,0.00037,20]
[425145055,1781548300000,-250.04431898,0.00037,7]
[425145054,1781548300000,-2164.92036025,0.00037,7]
[425145069,1781548300000,-228.27538337,0.00037038,8]
[425145056,1781548300000,-500.0,0.00037,120]
[425145057,1781548300000,-168.20893723,0.00037,120]
[425145061,1781548300000,-167.0,0.00037,120]
[425145065,1781548300000,-1947.6062375,0.00037,120]
[425145063,1781548300000,-235.0,0.00037,30]
[425145064,1781548300000,-2500.0,0.00037,38]
[425145067,1781548300000,-150.0,0.00037004,120]
[425145066,1781548300000,-757.08467002,0.00037,120]
[425145062,1781548300000,-500.0,0.00037,120]
[425145058,1781548300000,-235.0,0.00037,30]
[425145088,1781548300000,-1694.93,0.00037164,7]
[425145098,1781548300000,-501.0,0.00037243,13]
[425145090,1781548300000,-1246.74052059,0.000372,120]
[425145117,1781548300000,-1000.0,0.00037449,2]
[425145118,1781548300000,-150.0,0.00037449,2]
[425145116,1781548300000,-500.0,0.00037449,2]
[425145115,1781548300000,-150.0,0.00037449,2]
[425145114,1781548300000,-13787.86842671,0.00037425,2]
[425145119,1781548300000,-991.00781294,0.00037487,2]
[425145122,1781548300000,-800.0,0.000375,7]
[425145120,1781548300000,-800.0,0.000375,7]
[425145121,1781548300000,-800.0,0.000375,7]
[425145089,1781548300000,-1434.90345,0.000372,120]
[425145126,1781548300000,-278.0,0.0003758,120]
[425145125,1781548300000,-304.4856333,0.000375,120]
[425145123,1781548300000,-171671.29031912,0.000375,2]
[425145127,1781548300000,-278.0,0.0003758,120]
[425145129,1781548300000,-2000.0,0.00037589,30]
[425145128,1781548300000,-158.24410207,0.00037583,2]
[425145130,1781548300000,-150.0,0.00037589,120]
[425145113,1781548300000,-150.0,0.00037422,120]
[425145111,1781548300000,-150.0,0.000374,120]
[425145124,1781548300000,-500.0,0.000375,120]
[425145110,1781548300000,-278.0,0.000374,120]
[425145112,1781548300000,-150.0,0.00037418,120]
[425145093,1781548300000,-1246.74052059,0.000372,120]
[425145092,1781548300000,-1246.74052059,0.000372,120]
[425145096,1781548300000,-260.31,0.0003721,60]
[425145095,1781548300000,-201.11393869,0.00037205,30]
[425145097,1781548300000,-150.0,0.00037219,120]
[425145101,1781548300000,-158.24410207,0.00037309,2]
[425145099,1781548300000,-500.0,0.0003726,120]
[425145094,1781548300000,-1246.74052059,0.000372,120]
[425145102,1781548300000,-150.0,0.0003732,120]
[425145104,1781548300000,-169.85301566,0.00037357,120]
[425145109,1781548300000,-228.27538337,0.00037383,8]
[425145107,1781548300000,-251.46769,0.0003738,120]
[425145106,1781548300000,-1001.0,0.0003737,120]
[425145105,1781548300000,-673.0,0.00037358,14]
[425145103,1781548300000,-150.0,0.00037341,120]
[425145100,1781548300000,-500.0,0.00037262,40]
[425145108,1781548300000,-465.373808,0.00037381,19]
[425145143,1781548301000,-340.0,0.0003762,2]
[425145145,1781548301000,-340.0,0.0003762,2]
[425145148,1781548301000,-340.0,0.0003762,2]
[425145146,1781548301000,-340.0,0.0003762,2]
[425145149,1781548301000,-172.35727228,0.0003762,2]
[425145150,1781548301000,-945.21,0.00037622,120]
[425145151,1781548301000,-760442.22388723,0.00037627,15]
[425145144,1781548301000,-340.0,0.0003762,2]
[425145147,1781548301000,-340.0,0.0003762,2]
[425145155,1781548301000,-152.0,0.00037651,4]
[425145134,1781548301000,-386005.0,0.000376,30]
[425145139,1781548301000,-340.0,0.0003762,2]
[425145141,1781548301000,-340.0,0.0003762,2]
[425145140,1781548301000,-340.0,0.0003762,2]
[425145136,1781548301000,-340.0,0.0003762,2]
[425145138,1781548301000,-340.0,0.0003762,2]
[425145137,1781548301000,-340.0,0.0003762,2]
[425145135,1781548301000,-587.03642245,0.00037614,60]
[425145133,1781548301000,-181.80707183,0.000376,120]
[425145132,1781548301000,-150.0,0.00037596,120]
[425145131,1781548301000,-4424.68830598,0.0003759,2]
[425145142,1781548301000,-340.0,0.0003762,2]
[425145153,1781548301000,-300.0,0.00037637,2]
[425145167,1781548301000,-1242.28650753,0.00037723,30]
[425145156,1781548301000,-154.77912629,0.00037651,5]
[425145154,1781548301000,-260.31,0.0003765,78]
[425145177,1781548301000,-5000.0,0.00037789,2]
[425145178,1781548301000,-5000.0,0.00037789,2]
[425145176,1781548301000,-5000.0,0.00037789,2]
[425145174,1781548301000,-5000.0,0.00037789,2]
[425145175,1781548301000,-5000.0,0.00037789,2]
[425145173,1781548301000,-5000.0,0.00037789,2]
[425145171,1781548301000,-1394.03142649,0.00037786,7]
[425145170,1781548301000,-1646.35801896,0.00037786,2]
[425145166,1781548301000,-498.83612077,0.00037723,120]
[425145169,1781548301000,-587.03642245,0.00037767,60]
[425145172,1781548301000,-5000.0,0.00037789,2]
[425145165,1781548301000,-515.27531395,0.00037723,120]
[425145160,1781548301000,-7538.0,0.000377,117]
[425145163,1781548301000,-228.27538337,0.00037723,14]
[425145164,1781548301000,-228.27538337,0.00037723,8]
[425145161,1781548301000,-500.0,0.00037703,41]
[425145162,1781548301000,-333474.66,0.00037719,9]
[425145159,1781548301000,-150.0,0.00037694,2]
[425145152,1781548301000,-150.0,0.00037634,120]
[425145157,1781548301000,-281.71811847,0.00037671,30]
[425145158,1781548301000,-248.057256,0.00037681,120]
[425145168,1781548301000,-150.0,0.00037764,120]
[425145216,1781548302000,-587.03642245,0.00037919,60]
[425145227,1781548302000,-500.0,0.00037945,44]
[425145217,1781548302000,-163.19,0.00037919,60]
[425145206,1781548302000,-163.19,0.00037869,60]
[425145205,1781548302000,-334.12,0.00037867,60]
[425145208,1781548302000,-206.23745232,0.0003788,2]
[425145211,1781548302000,-588.73164612,0.00037908,120]
[425145215,1781548302000,-334.12,0.00037917,60]
[425145214,1781548302000,-216.51,0.00037912,60]
[425145218,1781548302000,-179.57,0.00037919,60]
[425145212,1781548302000,-418.06484271,0.00037908,120]
[425145226,1781548302000,-500.0,0.00037945,45]
[425145235,1781548302000,-151.0,0.00037945,47]
[425145219,1781548302000,-500.0,0.00037929,30]
[425145221,1781548302000,-500.0,0.00037931,39]
[425145223,1781548302000,-500.0,0.00037931,37]
[425145222,1781548302000,-500.0,0.00037931,38]
[425145225,1781548302000,-500.0,0.00037945,46]
[425145224,1781548302000,-500.0,0.00037945,47]
[425145228,1781548302000,-500.0,0.00037945,43]
[425145229,1781548302000,-500.0,0.00037945,42]
[425145230,1781548302000,-500.0,0.00037945,41]
[425145231,1781548302000,-1000.0,0.00037945,47]
[425145213,1781548302000,-209.03242136,0.00037908,120]
[425145220,1781548302000,-500.0,0.00037931,40]
[425145210,1781548302000,-150.0,0.000379,120]
[425145194,1781548302000,-500.0,0.00037832,120]
[425145204,1781548302000,-164.13,0.00037867,60]
[425145180,1781548302000,-5000.0,0.00037789,2]
[425145189,1781548302000,-150.0,0.00037802,120]
[425145181,1781548302000,-5000.0,0.00037789,2]
[425145188,1781548302000,-700.13,0.000378,120]
[425145179,1781548302000,-5000.0,0.00037789,2]
[425145186,1781548302000,-1536.075,0.000378,120]
[425145187,1781548302000,-1536.07,0.000378,120]
[425145190,1781548302000,-165.45,0.00037807,7]
[425145182,1781548302000,-260.6,0.00037789,2]
[425145183,1781548302000,-123792.83408683,0.000378,15]
[425145185,1781548302000,-1536.075,0.000378,120]
[425145184,1781548302000,-1696.2151,0.000378,60]
[425145191,1781548302000,-211.18319588,0.00037823,120]
[425145192,1781548302000,-205.36023716,0.00037823,120]
[425145197,1781548302000,-1694.93,0.00037849,7]
[425145238,1781548302000,-154.67963625,0.00037945,47]
[425145198,1781548302000,-2110.0,0.00037856,2]
[425145202,1781548302000,-456.94,0.00037864,120]
[425145193,1781548302000,-3731.18,0.00037826,2]
[425145200,1781548302000,-158.24410207,0.00037857,2]
[425145195,1781548302000,-6349.69,0.00037849,2]
[425145199,1781548302000,-169.85301566,0.00037857,120]
[425145201,1781548302000,-216.51,0.00037862,60]
[425145196,1781548302000,-3113.68,0.00037849,7]
[425145203,1781548302000,-214.65,0.00037867,60]
[425145207,1781548302000,-179.57,0.00037869,60]
[425145234,1781548302000,-151.28403746,0.00037945,47]
[425145209,1781548302000,-278.0,0.000379,120]
[425145233,1781548302000,-752.79699085,0.00037945,45]
[425145266,1781548302000,-1112.1608346,0.0003797,30]
[425145265,1781548302000,-154.67963625,0.0003797,30]
[425145267,1781548302000,-187.78006524,0.0003797,30]
[425145268,1781548302000,-155.04060098,0.0003797,30]
[425145272,1781548302000,-500.0,0.0003797,30]
[425145270,1781548302000,-500.0,0.0003797,30]
[425145271,1781548302000,-151.0,0.0003797,30]
[425145269,1781548302000,-200.0,0.0003797,30]
[425145273,1781548302000,-646.65982734,0.0003797,30]
[425145276,1781548302000,-187.78006524,0.0003797,30]
[425145286,1781548302000,-4882.75691481,0.00038,20]
[425145279,1781548302000,-187.78006524,0.0003797,30]
[425145282,1781548302000,-1899.45834752,0.00037972,120]
[425145275,1781548302000,-187.78006524,0.0003797,30]
[425145277,1781548302000,-151.0,0.0003797,30]
[425145278,1781548302000,-151.0,0.0003797,30]
[425145283,1781548302000,-150.0,0.00037975,120]
[425145281,1781548302000,-38678.1314645,0.00037972,120]
[425145284,1781548302000,-244.70512,0.00037981,120]
[425145285,1781548302000,-197.32,0.00037999,7]
[425145288,1781548302000,-290097.05373274,0.00038,10]
[425145287,1781548302000,-2000.0,0.00038,15]
[425145290,1781548302000,-170.35196951,0.00038,30]
[425145239,1781548302000,-194.72792766,0.00037945,47]
[425145289,1781548302000,-27091.77644394,0.00038,7]
[425145274,1781548302000,-151.0,0.0003797,30]
[425145263,1781548302000,-151.0,0.0003797,30]